bitfinex/quotes_SOLUSD_20240708
["timestamp","ask_amount","ask_price","bid_price","bid_amount"]
[1720447169396,26.0927,140.95,140.9,100.0]
[1720447169578,6.3539,140.98,140.92,100.0]
[1720447169969,0.2,140.99,140.95,0.17]
[1720447170394,0.2,140.99,140.95,0.34]
[1720447170595,0.2,140.99,140.95,0.51]
[1720447171378,0.2,140.99,140.97,0.17]
[1720447172498,0.2,140.99,140.98,100.17]
[1720447172797,0.2,140.99,140.98,0.17]
[1720447173190,0.2,140.99,140.97,0.17]
[1720447176303,0.2,140.99,140.95,0.17]
[1720447176503,0.2,140.99,140.95,0.51]
[1720447177502,0.2,140.99,140.95,0.17]
[1720447178297,0.2,140.99,140.97,0.17]
[1720447178497,0.2,140.99,140.97,1.37739912]
[1720447178699,0.2,140.99,140.95,0.34]
[1720447179407,0.2,140.99,140.95,0.17]
[1720447179912,0.2,140.99,140.95,0.51]
[1720447180099,0.2,140.99,140.95,0.17]
[1720447181909,0.2,140.99,140.97,0.17]
[1720447182409,0.2,140.99,140.97,1.57790256]
[1720447184518,0.2,140.99,140.95,0.17]
[1720447185017,0.2,140.99,140.93,16.5739]
[1720447185517,0.2,140.99,140.94,100.0]
[1720447186115,0.2,140.99,140.95,0.17]
[1720447189321,0.2,140.99,140.96,100.0]
[1720447189527,0.2,140.99,140.97,1.33457238]
[1720447190198,0.2,140.99,140.98,100.17]
[1720447190502,0.2,140.99,140.98,100.51]
[1720447191820,0.2,140.99,140.98,121.99]
[1720447192215,0.2,140.99,140.98,123.32447771]
[1720447192928,7.3919961,141.08,141.04,0.17]
[1720447194597,20.0,141.07,141.04,0.17]
[1720447195207,20.0,141.07,141.04,1.50391]
[1720447195713,0.8794961,141.08,141.05,100.0]
[1720447195915,0.8794961,141.08,141.06,1.33539467]
[1720447197198,0.8794961,141.08,141.04,0.17]
[1720447197526,7.9675961,141.08,141.02,0.17]
[1720447197742,7.0895,141.06,140.98,15.4299]
[1720447198021,7.0902,141.04,140.99,1.41256292]
[1720447198223,20.0,141.03,140.99,1.41256292]
[1720447198804,20.0,141.05,140.98,1.41256292]
[1720447199030,20.0,141.05,140.97,100.0]
[1720447199529,20.0,141.05,141.0,0.17]
[1720447200018,20.0,141.05,141.01,100.0]
[1720447200225,0.8794961,141.08,141.02,0.17]
[1720447200421,0.8794961,141.08,141.02,0.51]
[1720447200810,0.8794961,141.08,141.01,100.0]
[1720447201004,0.8794961,141.08,141.02,0.34]
[1720447201213,0.8794961,141.08,141.03,100.0]
[1720447201415,7.0892,141.06,141.02,0.17]
[1720447201616,7.0898,141.05,140.97,100.0]
[1720447201817,7.0898,141.05,140.95,21.48]
[1720447201818,7.0893,141.06,140.99,100.0]
[1720447202006,0.8794961,141.08,140.98,0.17]
[1720447202210,7.0903,141.04,140.95,100.0]
[1720447202408,26.147,141.03,140.97,100.0]
[1720447202912,26.147,141.03,140.95,100.0]
[1720447205333,20.0,140.95,140.87,100.0]
[1720447205918,20.0,140.95,140.89,100.0]
[1720447206504,20.0,140.95,140.86,144.4877]
[1720447206505,20.0,140.95,140.91,100.0]
[1720447206708,20.0,140.95,140.93,100.0]
[1720447206908,20.0,140.98,140.91,100.0]
[1720447207135,20.0,140.98,140.89,21.48]
[1720447207136,6.2902,141.0,140.93,100.0]
[1720447207307,6.2902,141.0,140.94,0.17]
[1720447207914,6.2902,141.0,140.96,0.17]
[1720447208329,6.2902,141.0,140.96,0.34]
[1720447208724,6.2902,141.0,140.96,0.17]
[1720447208921,6.24385751,141.02,140.96,0.17]
[1720447208922,6.24385751,141.02,140.96,100.17]
[1720447209132,13.4002,141.03,140.97,1.41836924]
[1720447209340,6.3094,141.03,140.98,0.17]
[1720447209725,6.3094,141.03,140.97,1.41836924]
[1720447209926,13.4003,141.03,140.96,1.41839029]
[1720447210123,13.4003,141.03,140.97,0.17]
[1720447210124,6.3094,141.03,140.97,0.17]
[1720447210327,6.3094,141.03,140.97,1.58842836]
[1720447210644,20.0,141.02,140.94,100.0]
[1720447210847,22.11158682,141.02,140.94,100.0]
[1720447211054,22.11158682,141.02,140.92,100.0]
[1720447211226,7.0921,141.01,140.92,100.0]
[1720447211428,20.0,141.0,140.92,100.0]
[1720447211640,7.0917,141.01,140.92,100.0]
[1720447211839,27.0922,141.0,140.92,100.0]
[1720447212145,22.11158682,141.02,140.95,100.0]
[1720447212342,20.0,140.99,140.96,0.17]
[1720447212747,27.0912,141.02,140.94,0.17]
[1720447212932,27.0912,141.02,140.94,0.34]
[1720447213334,20.0,141.02,140.96,0.17]
[1720447213721,27.0912,141.02,140.96,0.17]
[1720447214737,20.0,141.02,140.96,100.17]
[1720447215242,12.66168245,141.03,140.98,100.0]
[1720447215449,6.35228245,141.03,141.02,0.17]
[1720447215615,6.35228245,141.03,140.97,28.9136]
[1720447215616,9.3046,141.07,141.0,0.17]
[1720447215822,9.3046,141.07,141.0,0.34]
[1720447216031,9.3046,141.07,141.01,100.0]
[1720447216322,6.1222,141.07,141.01,100.0]
[1720447216940,6.1222,141.07,141.0,0.34]
[1720447217246,12.31149104,141.07,140.97,0.17]
[1720447217551,7.0905,141.04,140.96,0.17]
[1720447217738,38.09,141.04,140.96,0.17]
[1720447217927,55.74637199,141.07,141.0,100.0]
[1720447218240,62.83497199,141.07,141.0,100.0]
[1720447218449,20.0,141.06,141.0,100.0]
[1720447218857,44.2122,141.07,141.01,0.17]
[1720447219431,51.3009,141.07,141.01,0.17]
[1720447219739,44.2122,141.07,140.96,100.0]
[1720447219949,7.0893,141.06,140.96,100.0]
[1720447220352,51.301,141.07,140.98,100.0]
[1720447220544,20.0,141.06,140.98,100.0]
[1720447220939,27.0892,141.06,140.98,100.0]
[1720447221236,20.0,141.06,140.98,100.0]
[1720447221640,20.0,141.06,140.96,100.0]
[1720447221852,17.8949,141.05,140.94,100.0]
[1720447222035,38.09,141.03,140.94,100.0]
[1720447222233,20.0,141.02,140.94,100.0]
[1720447223057,20.0,141.02,140.93,16.2356]
[1720447223058,27.0913,141.02,140.93,16.2356]
[1720447223546,27.0913,141.02,140.94,0.17]
[1720447223745,20.0,141.02,140.94,100.17]
[1720447224051,20.0,141.04,140.96,100.0]
[1720447224552,20.0,141.04,140.97,0.51]
[1720447225053,20.0,141.04,140.97,0.34]
[1720447225439,20.0,141.04,140.93,16.2356]
[1720447225440,7.0912,141.02,140.93,16.2356]
[1720447225668,20.0,141.01,140.92,100.0]
[1720447225983,6.5229,141.0,140.96,100.0]
[1720447226163,20.0,140.99,140.96,100.0]
[1720447226339,20.0,140.99,140.94,100.0]
[1720447226738,20.0,141.02,140.94,100.0]
[1720447226958,20.0,141.02,140.89,116.5044]
[1720447226959,20.0,141.02,140.97,0.17]
[1720447227139,20.0,141.02,140.96,100.0]
[1720447227339,20.0,141.02,140.97,0.17]
[1720447228740,20.0,141.02,140.91,100.0]
[1720447228936,0.17,141.01,140.89,16.5044]
[1720447229147,13.3909,140.97,140.89,16.5044]
[1720447229358,20.0,140.96,140.89,16.5044]
[1720447230478,20.0,140.96,140.9,100.0]
[1720447230957,0.17,140.95,140.84,100.0]
[1720447231262,7.0964,140.92,140.82,115.1505]
[1720447231462,20.0,140.91,140.82,115.1505]
[1720447232146,7.0968,140.91,140.82,15.1505]
[1720447232347,20.0,140.9,140.82,115.1505]
[1720447232559,0.17,140.92,140.82,115.1505]
[1720447232762,7.4363,140.92,140.82,115.1505]
[1720447233058,20.0,140.91,140.82,115.1505]
[1720447233267,27.0969,140.91,140.82,15.1505]
[1720447233566,6.4664,140.9,140.82,15.1505]
[1720447233769,20.0,140.89,140.82,15.1505]
[1720447234161,20.0,140.89,140.8,100.0]
[1720447234362,20.0,140.89,140.79,16.3986]
[1720447234760,27.098,140.89,140.79,16.3986]
[1720447235567,27.098,140.89,140.8,100.0]
[1720447235774,20.0,140.89,140.82,100.0]
[1720447235956,44.5564,140.9,140.85,0.17]
[1720447236147,6.4664,140.9,140.85,0.17]
[1720447236863,6.4664,140.9,140.8,24.8565]
[1720447236864,6.4664,140.9,140.82,100.0]
[1720447237054,6.4664,140.9,140.84,0.17]
[1720447237255,20.0,140.89,140.84,100.17]
[1720447237771,6.3044,140.94,140.87,0.17]
[1720447238071,6.3044,140.94,140.87,0.51]
[1720447238258,6.3044,140.94,140.84,100.0]
[1720447238574,13.3999,140.94,140.85,0.17]
[1720447238874,6.3044,140.94,140.83,100.17]
[1720447239176,20.0,140.93,140.84,0.17]
[1720447240076,20.0,140.93,140.85,100.0]
[1720447240375,20.0,140.93,140.86,0.51]
[1720447240663,20.0,140.93,140.84,0.17]
[1720447240867,7.0965,140.92,140.81,100.0]
[1720447241071,7.0973,140.9,140.81,100.0]
[1720447241252,20.0,140.89,140.79,116.3986]
[1720447241454,6.5058,140.88,140.79,116.3986]
[1720447241662,20.0,140.87,140.79,100.0]
[1720447242173,58.09,140.87,140.76,15.3974]
[1720447242380,7.0997,140.86,140.77,100.0]
[1720447242671,20.0,140.85,140.77,100.0]
[1720447243167,20.0,140.85,140.76,15.3974]
[1720447243366,20.17,140.86,140.73,100.0]
[1720447243572,7.1004,140.84,140.73,100.0]
[1720447243777,13.5954,140.82,140.73,100.0]
[1720447243960,20.0,140.81,140.73,100.0]
[1720447245061,27.1019,140.81,140.71,116.4686]
[1720447245475,27.1018,140.81,140.71,16.4686]
[1720447245778,7.103,140.79,140.71,0.2]
[1720447245953,20.0,140.78,140.71,0.2]
[1720447247581,13.4197,140.77,140.67,115.5676]
[1720447247777,20.0,140.76,140.67,115.5676]
[1720447247978,20.0,140.76,140.7,100.0]
[1720447248279,20.0,140.76,140.71,100.0]
[1720447248481,20.0,140.76,140.73,100.0]
[1720447249070,20.0,140.76,140.74,0.17]
[1720447249766,20.0,140.76,140.68,100.0]
[1720447249972,20.0,140.76,140.69,0.50953402]
[1720447251979,20.0,140.76,140.7,0.17]
[1720447252199,7.1062,140.73,140.65,100.0]
[1720447252491,20.0,140.72,140.7,100.0]
[1720447252670,6.18193658,140.78,140.74,100.0]
[1720447252867,6.0193,140.81,140.74,100.0]
[1720447252868,6.0193,140.81,140.78,100.0]
[1720447253060,6.0193,140.85,140.78,100.0]
[1720447253260,6.0193,140.85,140.77,0.17]
[1720447253261,7.1003,140.84,140.77,0.17]
[1720447253561,7.1012,140.82,140.73,0.17]
[1720447253758,44.1093,140.85,140.76,100.0]
[1720447253981,50.2948128,140.85,140.77,0.17]
[1720447254179,50.2948128,140.85,140.79,0.17]
[1720447254385,50.2948128,140.85,140.79,0.34]
[1720447254588,50.2948128,140.85,140.76,100.0]
[1720447254895,50.2948128,140.85,140.79,0.17]
[1720447255066,50.2948128,140.85,140.79,0.68519823]
[1720447255267,12.2048128,140.85,140.81,0.17]
[1720447255565,6.0193,140.85,140.83,0.17]
[1720447255769,6.39777875,140.87,140.83,0.17]
[1720447255971,6.5062,140.89,140.83,0.68505189]
[1720447256998,6.5062,140.89,140.85,0.17]
[1720447257170,6.5062,140.89,140.85,0.68497875]
[1720447257359,6.5062,140.89,140.85,0.17]
[1720447257683,20.0,140.88,140.85,0.17]
[1720447258762,6.0838,140.93,140.88,0.17]
[1720447258995,6.0838,140.93,140.88,0.51]
[1720447259185,6.0838,140.93,140.89,100.0]
[1720447260465,6.0838,140.93,140.88,0.34]
[1720447260664,6.0838,140.93,120.15,0.04931691]
[1720447260665,3.1824,140.91,140.8,100.0]
[1720447260886,7.0982,140.88,140.8,100.0]
[1720447261088,27.0989,140.87,140.78,100.0]
[1720447261296,20.0,140.87,140.78,100.0]
[1720447261473,20.0,140.87,140.74,13.7096]
[1720447261474,6.469,140.86,140.76,100.0]
[1720447261672,20.0,140.85,140.76,100.0]
[1720447262198,20.0,140.85,140.75,15.4873]
[1720447262398,7.1017,140.82,140.74,100.0]
[1720447262693,38.09,140.84,140.71,271.9312]
[1720447262694,20.0,140.81,140.76,100.0]
[1720447262988,20.0,140.81,140.72,100.0]
[1720447263190,20.0,140.83,140.71,16.3312]
[1720447263362,23.3524,140.83,140.71,16.3312]
[1720447263576,6.3374,140.79,140.72,100.93362671]
[1720447263777,20.0,140.78,140.76,100.0]
[1720447263992,6.3374,140.83,140.77,100.0]
[1720447264583,6.3374,140.83,140.78,0.34]
[1720447265196,6.3374,140.83,140.75,100.0]
[1720447265406,20.0,140.82,140.76,0.34]
[1720447265990,20.0,140.82,140.78,0.17]
[1720447266400,20.0,140.82,140.78,0.34]
[1720447266702,20.0,140.82,140.75,100.0]
[1720447266902,20.0,140.82,140.78,0.17]
[1720447267105,20.0,140.82,140.77,100.0]
[1720447267601,20.0,140.82,140.78,0.34]
[1720447267986,20.0,140.82,140.78,1.75972691]
[1720447268596,20.0,140.82,140.78,0.17]
[1720447268800,20.0,140.82,140.75,100.0]
[1720447269083,20.0,140.82,140.76,0.34]
[1720447269791,6.3374,140.83,140.8,0.17]
[1720447270791,6.3374,140.83,140.8,1.58328161]
[1720447270994,6.41710783,140.86,140.81,100.0]
[1720447271305,6.451,140.87,140.83,0.17]
[1720447271495,6.451,140.87,140.83,0.34]
[1720447271690,6.451,140.87,140.83,0.17]
[1720447271987,6.451,140.87,140.79,16.5032]
[1720447272195,6.451,140.87,140.77,100.0]
[1720447272413,7.1,140.85,140.77,100.0]
[1720447272609,20.0,140.84,140.77,100.0]
[1720447272906,20.0,140.84,140.79,100.0]
[1720447273209,20.0,140.86,140.79,100.0]
[1720447273399,6.451,140.87,140.81,100.0]
[1720447273700,6.451,140.87,140.82,0.34]
[1720447273887,6.451,140.87,140.83,100.17]
[1720447274077,6.451,140.87,140.84,0.17]
[1720447274279,6.451,140.87,140.82,0.17]
[1720447274482,6.451,140.87,140.83,100.0]
[1720447274682,6.13878869,140.89,140.84,0.17]
[1720447274900,6.3276,140.94,140.9,0.17]
[1720447275099,6.3276,140.94,140.9,1.57381317]
[1720447275514,6.3276,140.94,140.85,21.32]
[1720447275515,6.30170358,140.94,140.85,0.17]
[1720447275712,6.30170358,140.94,140.85,100.34]
[1720447275892,13.39700358,140.94,140.85,100.34]
[1720447276205,20.0,140.93,140.85,100.34]
[1720447276412,7.0972,140.9,140.81,100.0]
[1720447276590,7.0972,140.9,140.8,15.8156]
[1720447276591,20.0,140.89,140.85,100.0]
[1720447276793,20.0,140.89,140.83,100.0]
[1720447277000,20.0,140.89,140.81,100.0]
[1720447277215,7.0973,140.9,140.81,100.0]
[1720447277386,20.0,140.89,140.81,100.0]
[1720447277593,23.1824,140.91,140.83,100.0]
[1720447277901,23.1824,140.91,140.85,100.0]
[1720447278098,46.69,140.92,140.85,100.0]
[1720447278394,6.30170358,140.94,140.86,0.17]
[1720447278612,13.39700358,140.94,140.86,0.17]
[1720447278806,6.30170358,140.94,140.88,0.17]
[1720447279015,6.30170358,140.94,140.9,0.17]
[1720447279205,53.3281,140.98,140.9,0.17]
[1720447279403,7.0937,140.97,140.9,0.17]
[1720447279604,53.3281,140.98,140.89,100.17]
[1720447280001,53.3281,140.98,140.92,0.17]
[1720447280222,6.6381,140.98,140.92,0.17]
[1720447280429,13.7313,140.98,140.89,100.0]
[1720447280722,13.7313,140.98,140.9,100.17]
[1720447280727,20.03695339,140.98,140.9,100.17]
[1720447281128,12.94375339,140.98,140.92,100.0]
[1720447281322,0.2,140.99,140.95,0.17]
[1720447281716,0.2,140.99,140.91,100.17]
[1720447281909,0.2,140.99,140.93,100.0]
[1720447282308,0.2,140.99,140.92,0.17]
[1720447282632,45.2,140.99,140.89,100.0]
[1720447282815,27.2931,140.99,140.89,100.0]
[1720447283124,20.2,140.99,140.94,100.0]
[1720447283632,20.2,140.99,140.92,100.0]
[1720447283818,20.2,140.99,140.93,0.17]
[1720447284020,20.2,140.99,140.92,0.17]
[1720447285127,20.2,140.99,140.88,116.3067]
[1720447285425,53.9533,140.98,140.88,116.3067]
[1720447285605,20.0,140.97,140.88,116.3067]
[1720447285812,27.0937,140.97,140.88,100.0]
[1720447286228,20.0,140.97,140.88,100.0]
[1720447286614,6.5459,140.96,140.88,100.0]
[1720447286928,20.0,140.95,140.88,100.0]
[1720447287110,20.0,140.95,140.9,100.0]
[1720447287726,20.0,140.95,140.91,0.17]
[1720447287930,20.0,140.95,140.91,0.34]
[1720447288128,20.0,140.95,140.91,0.17]
[1720447288437,20.0,140.95,140.92,100.0]
[1720447288739,0.2,140.99,140.94,100.0]
[1720447288912,0.2,140.99,140.95,0.17]
[1720447289242,0.2,140.99,140.95,0.34]
[1720447289536,0.2,140.99,140.95,100.0]
[1720447290035,0.2,140.99,140.96,0.17]
[1720447290439,20.2,140.99,140.96,0.17]
[1720447290612,27.2928,140.99,140.9,100.0]
[1720447291118,20.2,140.99,140.92,100.0]
[1720447291313,0.2,140.99,140.94,100.0]
[1720447291832,0.2,140.99,140.95,0.17]
[1720447292139,0.2,140.99,140.94,0.34]
[1720447292937,20.2,140.99,140.94,0.34]
[1720447293844,20.2,140.99,140.9,100.0]
[1720447294021,20.2,140.99,140.88,116.4383]
[1720447294022,7.0932,140.98,140.88,116.4383]
[1720447294227,20.0,140.97,140.9,100.0]
[1720447294833,20.2,140.99,140.91,1.41898722]
[1720447295032,7.0937,140.97,140.88,116.4383]
[1720447295239,20.0,140.96,140.88,116.4383]
[1720447295743,27.0938,140.97,140.88,116.4383]
[1720447296949,20.0,140.97,140.88,116.4383]
[1720447297448,20.0,140.97,140.89,0.34]
[1720447298025,20.0,140.97,140.89,0.17]
[1720447298225,27.0939,140.97,140.89,0.17]
[1720447298641,20.0,140.97,140.89,0.17]
[1720447298836,38.17,140.98,140.93,100.0]
[1720447299230,0.2,140.99,140.94,0.17]
[1720447299647,0.2,140.99,140.92,0.17]
[1720447299952,0.2,140.99,140.93,0.17]
[1720447301547,20.2,140.99,140.93,0.17]
[1720447303057,20.2,140.99,140.96,100.0]
[1720447303361,0.2,140.99,140.97,0.17]
[1720447303525,0.2,140.99,140.98,100.17]
[1720447303939,0.2,140.99,140.98,0.17]
[1720447304628,0.2,140.99,140.98,100.17]
[1720447305070,0.2,140.99,140.98,0.17]
[1720447305349,0.2,140.99,140.97,0.34]
[1720447305653,0.2,140.99,140.98,100.17]
[1720447305860,0.2,140.99,140.98,100.34]
[1720447306154,0.2,140.99,140.97,0.17]
[1720447306355,0.2,140.99,140.97,0.34]
[1720447306852,0.2,140.99,140.96,100.0]
[1720447307153,0.2,140.99,140.97,0.17]
[1720447307731,0.2,140.99,140.97,0.77091238]
[1720447308051,0.2,140.99,140.98,100.17]
[1720447308438,0.2,140.99,140.98,100.51]
[1720447309548,0.2,140.99,140.98,0.17]
[1720447309737,0.2,140.99,140.97,0.17]
[1720447309933,0.2,140.99,140.95,16.5769]
[1720447310658,0.2,140.99,140.92,100.0]
[1720447310839,0.2,140.99,140.91,16.6248]
[1720447311037,7.0938,140.97,140.88,100.0]
[1720447311352,20.0,140.96,140.88,100.0]
[1720447311549,27.0946,140.96,140.88,100.0]
[1720447311856,20.0,140.96,140.88,100.0]
[1720447312435,20.0,140.97,140.88,100.0]
[1720447313340,27.0937,140.97,140.88,100.0]
[1720447313561,20.0,140.97,140.88,100.0]
[1720447313759,20.0,140.97,140.91,0.17]
[1720447313961,20.0,140.97,140.91,0.34]
[1720447314150,20.0,140.97,140.92,100.0]
[1720447314344,20.0,140.97,140.91,0.34]
[1720447314749,20.0,140.97,140.91,0.17]
[1720447314945,27.0938,140.97,140.88,100.0]
[1720447315343,20.0,140.97,140.88,100.0]
[1720447316258,20.0,140.97,140.89,0.17]
[1720447316469,20.0,140.97,140.89,0.34]
[1720447317241,27.0938,140.97,140.89,1.7572252]
[1720447318877,7.0943,140.96,140.89,0.17]
[1720447319161,20.0,140.97,140.89,0.17]
[1720447319162,20.0,140.95,140.89,0.17]
[1720447319463,20.0,140.95,140.9,100.0]
[1720447319654,20.0,140.97,140.89,0.34]
[1720447320471,20.0,140.97,140.89,0.17]
[1720447320653,26.17439174,140.97,140.9,100.0]
[1720447321269,7.0955,140.94,140.84,115.2534]
[1720447321473,27.0958,140.93,140.84,15.2534]
[1720447321765,6.5137,140.91,140.82,100.0]
[1720447321962,20.0,140.9,140.8,115.2534]
[1720447322167,45.0,140.89,140.8,15.2534]
[1720447322373,38.17,140.87,140.78,100.0]
[1720447322560,20.0,140.86,140.78,100.0]
[1720447323176,20.0,140.86,140.82,100.0]
[1720447323357,20.0,140.86,140.84,100.0]
[1720447323543,20.0,140.9,140.84,100.0]
[1720447323865,20.0,140.9,140.85,100.0]
[1720447324264,20.0,140.9,140.8,121.32]
[1720447324265,20.0,140.9,140.84,0.34]
[1720447324653,20.0,140.9,140.86,0.17]
[1720447324850,38.17,140.91,140.88,0.17]
[1720447325154,38.17,140.98,140.94,100.0]
[1720447325355,6.6258,141.0,140.95,0.17]
[1720447325555,6.31428868,141.03,140.97,0.17]
[1720447325761,6.37327336,141.0,140.95,0.34]
[1720447325958,6.37327336,141.0,140.94,100.0]
[1720447326272,6.37327336,141.0,140.95,1.58792364]
[1720447326572,6.37327336,141.0,140.94,0.17]
[1720447326882,26.37327336,141.0,140.9,100.0]
[1720447327168,20.2,140.99,140.93,100.0]
[1720447327377,20.2,140.99,140.94,0.17]
[1720447327671,20.2,140.99,140.95,100.0]
[1720447328177,20.2,140.99,140.94,0.17]
[1720447328469,20.2,140.99,140.93,0.17]
[1720447328651,20.2,140.99,140.95,100.0]
[1720447329063,20.2,140.99,140.97,100.0]
[1720447329257,20.2,140.99,140.96,0.34]
[1720447329445,20.2,140.99,140.95,100.0]
[1720447329641,20.2,140.99,140.94,0.51]
[1720447329841,20.2,140.99,140.95,100.0]
[1720447330070,20.2,140.99,140.96,0.17]
[1720447330071,0.2,140.99,140.96,0.17]
[1720447330246,0.2,140.99,140.98,0.17]
[1720447330446,0.2,140.99,140.98,0.83289601]
[1720447330670,0.2,140.99,140.98,1.00289601]
[1720447331277,0.2,140.99,140.98,21.83]
[1720447331473,0.2,140.99,140.98,0.51]
[1720447332060,0.2,140.99,140.98,121.83]
[1720447332384,0.2,140.99,140.98,0.34]
[1720447332767,0.2,140.99,140.96,16.561]
[1720447332968,0.2,140.99,140.95,100.0]
[1720447333168,0.2,140.99,140.93,100.0]
[1720447333766,0.2,140.99,140.95,100.0]
[1720447333970,0.2,140.99,140.97,100.0]
[1720447334184,0.2,140.99,140.97,121.32]
[1720447334386,0.2,140.99,140.97,221.32]
[1720447334574,0.2,140.99,140.98,0.17]
[1720447335289,0.2,140.99,140.98,0.51]
[1720447335494,6.0162,141.1,141.03,0.17]
[1720447335792,44.1862,141.1,141.03,0.9119041]
[1720447336674,44.1862,141.1,141.03,0.7419041]
[1720447336887,51.2735,141.1,141.01,0.17]
[1720447337093,20.0,141.09,141.01,0.51]
[1720447337574,20.0,141.09,141.03,0.17]
[1720447337769,20.0,141.09,141.03,0.34]
[1720447338075,20.0,141.09,141.01,0.34]
[1720447338291,27.0877,141.09,141.0,100.0]
[1720447338465,20.0,141.09,141.02,100.0]
[1720447338665,27.0877,141.09,141.01,0.17]
[1720447338980,27.0878,141.09,141.0,100.0]
[1720447339378,7.0882,141.08,141.0,100.0]
[1720447339671,20.0,141.07,141.0,100.0]
[1720447339870,45.2595,141.06,140.96,100.0]
[1720447340191,72.0896,141.05,140.94,100.0]
[1720447340398,20.0,141.05,140.98,100.0]
[1720447340772,20.0,141.05,141.0,100.0]
[1720447341885,20.0,141.05,140.99,0.17]
[1720447342085,20.0,141.05,140.99,0.34]
[1720447342497,20.0,141.05,141.02,0.17]
[1720447342788,20.0,141.05,141.02,0.34]
[1720447343172,20.0,141.05,141.0,0.17]
[1720447343494,20.0,141.05,141.0,0.34]
[1720447344104,20.0,141.05,141.0,0.17]
[1720447344778,20.0,141.05,140.97,100.0]
[1720447344997,20.0,141.05,140.98,0.34]
[1720447345298,20.0,141.05,140.93,27.3255]
[1720447345299,20.0,141.05,140.95,100.0]
[1720447345508,38.17,141.02,140.93,100.0]
[1720447345678,20.0,141.01,140.93,100.0]
[1720447347103,20.0,141.01,140.91,116.3864]
[1720447347406,38.17,140.98,140.89,100.0]
[1720447347702,65.0,140.97,140.87,16.2453]
[1720447347878,72.0937,140.97,140.87,16.2453]
[1720447348077,38.17,140.94,140.86,100.0]
[1720447348303,20.0,140.93,140.86,100.0]
[1720447348503,20.0,140.93,140.84,100.0]
[1720447349078,20.0,140.93,140.86,121.32]
[1720447349292,20.0,140.93,140.9,100.0]
[1720447349507,20.0,140.95,140.9,100.0]
[1720447349884,20.0,140.95,140.85,100.0]
[1720447349885,20.0,140.95,140.92,100.0]
[1720447350079,6.31428868,141.01,140.94,100.0]
[1720447350386,6.1493,141.02,140.94,100.0]